bitfinex/quotes_BTCUSD_20230904
["timestamp","ask_amount","ask_price","bid_price","bid_amount"]
[1693801807575,0.0623555,25998.0,25997.0,0.80732934]
[1693801810509,0.0623555,25998.0,25997.0,0.62277815]
[1693801814339,0.007,25998.0,25997.0,0.62277815]
[1693801817247,0.007,25998.0,25997.0,0.71498149]
[1693801817454,0.007,25998.0,25997.0,0.43656589]
[1693801817671,0.007,25998.0,25997.0,0.29820334]
[1693801818925,0.007,25998.0,25997.0,0.43656589]
[1693801819139,0.007,25998.0,25997.0,0.715263]
[1693801819253,0.007,25998.0,25997.0,0.62305966]
[1693801819456,0.007,25998.0,25997.0,0.62300324]
[1693801821558,0.06749564,25998.0,25997.0,0.62300324]
[1693801827977,0.06749564,25998.0,25997.0,0.80755443]
[1693801828415,0.007,25998.0,25997.0,0.80755443]
[1693801830928,0.007,25998.0,25997.0,0.6692483]
[1693801835490,0.007,25998.0,25997.0,0.62304429]
[1693801835625,0.007,25998.0,25997.0,0.43657902]
[1693801835845,0.007,25998.0,25997.0,0.71558025]
[1693801836075,0.06749523,25998.0,25997.0,0.43657902]
[1693801836278,0.007,25998.0,25997.0,0.43657902]
[1693801836921,0.007,25998.0,25997.0,0.71621897]
[1693801837269,0.007,25998.0,25997.0,0.43657902]
[1693801837469,0.007,25998.0,25997.0,0.71622524]
[1693801837670,0.06749523,25998.0,25997.0,0.71622524]
[1693801839518,0.007,25998.0,25997.0,0.71623982]
[1693801839858,0.007,25998.0,25997.0,0.6239934]
[1693801845972,0.007,25998.0,25997.0,0.80854459]
[1693801851473,0.007,25998.0,25997.0,0.80979423]
[1693801858434,0.06749523,25998.0,25997.0,0.80979423]
[1693801858752,0.007,25998.0,25997.0,0.80979423]
[1693801864186,0.00605651,25998.0,25997.0,0.80979423]
[1693801868265,0.23177451,25998.0,25997.0,0.80979423]
[1693801868478,0.37486974,25998.0,25997.0,0.62519466]
[1693801872195,0.29226974,25998.0,25997.0,0.62519466]
[1693801872966,0.67935652,25998.0,25997.0,0.62519466]
[1693801877450,0.67935652,25998.0,25997.0,0.80979423]
[1693801880481,0.67935652,25998.0,25997.0,0.67134456]
[1693801884403,0.67935652,25998.0,25997.0,0.62523694]
[1693801885313,0.45363852,25998.0,25997.0,0.62523694]
[1693801887538,0.45363852,25998.0,25997.0,0.71755488]
[1693801888118,0.45347601,25998.0,25997.0,0.71755488]
[1693801892449,0.45347601,25998.0,25997.0,0.43680989]
[1693801894446,0.45347601,25998.0,25997.0,0.45570989]
[1693801901100,0.45322301,25998.0,25997.0,0.45570989]
[1693801905926,0.45322301,25998.0,25997.0,0.64662317]
[1693801944884,0.45322301,25998.0,25997.0,0.2249]
[1693801945085,0.45322301,25998.0,25997.0,0.54807643]
[1693801945485,0.45322301,25998.0,25997.0,0.82886812]
[1693801948382,0.06613623,25998.0,25997.0,0.92120425]
[1693801948601,0.06613623,25998.0,25997.0,0.736532]
[1693801948774,0.06613623,25998.0,25997.0,0.819132]
[1693801948775,0.005641,25998.0,25997.0,0.819132]
[1693801959415,0.005641,25998.0,25997.0,1.00365162]
[1693801962423,0.005641,25998.0,25997.0,0.819132]
[1693801963757,0.005641,25998.0,25997.0,1.00362297]
[1693801964771,0.0657018,25998.0,25997.0,1.00362297]
[1693801966123,0.0657018,25998.0,25997.0,0.81362297]
[1693801972067,0.0657018,25998.0,25997.0,0.629132]
[1693801974098,0.0657018,25998.0,25997.0,0.819132]
[1693801977840,0.005641,25998.0,25997.0,0.819132]
[1693801981480,0.005641,25998.0,25997.0,1.13537847]
[1693801981686,0.005641,25998.0,25997.0,1.82856684]
[1693801981890,0.005641,25998.0,25997.0,1.89791852]
[1693801982117,0.005641,25998.0,25997.0,1.82388684]
[1693801982320,0.005641,25998.0,25997.0,1.62066744]
[1693801982524,0.005641,25998.0,25997.0,1.62042744]
[1693801982735,0.005641,25998.0,25997.0,1.62012744]
[1693801982937,0.005641,25998.0,25997.0,1.76791044]
[1693801983144,0.2095,26004.0,26003.0,0.015]
[1693801983323,0.2095,26004.0,26003.0,0.25243471]
[1693801983580,0.05142249,26009.0,26003.0,0.25243471]
[1693801983581,0.05142249,26009.0,26003.0,0.0976]
[1693801983792,0.05142249,26009.0,26004.0,0.15483471]
[1693801983793,0.59658678,26008.0,26004.0,0.15483471]
[1693801984216,0.65313282,26008.0,26007.0,0.015]
[1693801984629,0.44363282,26008.0,26007.0,0.015]
[1693801985740,0.46763282,26008.0,26007.0,0.015]
[1693801985984,0.49163282,26008.0,26007.0,0.015]
[1693801988784,0.10454604,26008.0,26007.0,0.015]
[1693801997296,0.10454604,26008.0,26007.0,0.205]
[1693801999081,0.10277304,26008.0,26007.0,0.205]
[1693802040601,0.10277304,26008.0,26007.0,0.29720915]
[1693802054446,0.10277304,26008.0,26007.0,0.29726854]
[1693802063612,0.10277304,26008.0,26007.0,0.43567135]
[1693802063810,0.10277304,26008.0,26007.0,0.29726854]
[1693802067772,0.10277304,26008.0,26007.0,0.43567135]
[1693802069956,0.10277304,26008.0,26007.0,0.71460741]
[1693802070573,0.10277304,26008.0,26007.0,0.714775]
[1693802072997,0.10277304,26008.0,26007.0,0.71479757]
[1693802073132,0.10277304,26008.0,26007.0,0.62250646]
[1693802094093,0.10277304,26008.0,26007.0,0.62820646]
[1693802111109,0.10277304,26008.0,26007.0,0.62757402]
[1693802114459,0.10277304,26008.0,26007.0,0.81218297]
[1693802116997,0.10277304,26008.0,26007.0,0.62757402]
[1693802119518,0.10277304,26008.0,26007.0,0.81218297]
[1693802120991,0.10277304,26008.0,26007.0,0.62757402]
[1693802121376,0.10277304,26008.0,26007.0,0.81218297]
[1693802131201,0.10277304,26008.0,26007.0,0.62757402]
[1693802146160,0.10277304,26008.0,26007.0,0.81218297]
[1693802147003,0.05477304,26008.0,26007.0,0.81218297]
[1693802147218,0.07877304,26008.0,26007.0,0.81318297]
[1693802147435,0.042,26008.0,26007.0,0.81418297]
[1693802147648,0.54683518,26013.0,26007.0,0.81218297]
[1693802147858,0.05760968,26008.0,26007.0,0.53376566]
[1693802148071,0.042,26008.0,26007.0,0.80934861]
[1693802148490,0.042,26008.0,26007.0,0.6708919]
[1693802148723,0.018,26008.0,26007.0,0.6698919]
[1693802149961,0.018,26008.0,26007.0,0.6708919]
[1693802150376,0.018,26008.0,26007.0,0.6698919]
[1693802150604,0.042,26008.0,26007.0,0.6708919]
[1693802158373,0.042,26008.0,26007.0,0.7108919]
[1693802158591,0.042,26008.0,26007.0,0.64908295]
[1693802158799,0.042,26008.0,26007.0,1.01457637]
[1693802159001,0.042,26008.0,26007.0,1.01583637]
[1693802159214,0.042,26008.0,26007.0,1.01751637]
[1693802159421,0.018,26008.0,26007.0,1.01489637]
[1693802159631,0.024,26008.0,26007.0,1.01727637]
[1693802159837,0.024,26008.0,26007.0,1.01715637]
[1693802160039,0.024,26008.0,26007.0,1.01871637]
[1693802160251,0.018,26008.0,26007.0,1.01621637]
[1693802160450,0.001,26008.0,26007.0,1.01653637]
[1693802160660,0.001,26008.0,26007.0,1.01755637]
[1693802160863,0.001,26008.0,26007.0,1.02107637]
[1693802161072,0.001,26008.0,26007.0,1.01995637]
[1693802161459,0.001,26008.0,26007.0,1.01989637]
[1693802161671,0.002,26008.0,26007.0,1.02595637]
[1693802162091,0.002,26008.0,26007.0,1.02589637]
[1693802162294,0.002,26008.0,26007.0,1.02319637]
[1693802162495,0.002,26008.0,26007.0,0.74112295]
[1693802162694,0.002,26008.0,26007.0,0.74106295]
[1693802162906,0.002,26008.0,26007.0,0.74100295]
[1693802163111,0.002,26008.0,26007.0,0.74094295]
[1693802163316,0.002,26008.0,26007.0,0.74190295]
[1693802163518,0.002,26008.0,26007.0,0.74124295]
[1693802163734,0.002,26008.0,26007.0,0.67608295]
[1693802163859,0.002,26008.0,26007.0,0.74076295]
[1693802164084,0.002,26008.0,26007.0,0.74070295]
[1693802164314,0.002,26008.0,26007.0,0.74064295]
[1693802164525,0.002,26008.0,26007.0,0.67608295]
[1693802164738,0.002,26008.0,26007.0,0.75552295]
[1693802164952,0.002,26008.0,26007.0,1.14230973]
[1693802165154,0.002,26008.0,26007.0,1.14470973]
[1693802165382,0.002,26008.0,26007.0,1.56756973]
[1693802165586,0.002,26008.0,26007.0,1.56168973]
[1693802165793,0.002,26008.0,26007.0,1.56066973]
[1693802165996,0.002,26008.0,26007.0,1.55562973]
[1693802166283,0.1564,26015.0,26014.0,0.015]
[1693802166501,0.195,26016.0,26014.0,0.16983471]
[1693802166724,0.0550614,26015.0,26014.0,0.16983471]
[1693802166935,0.0550614,26015.0,26014.0,0.015]
[1693802167141,0.0888,26017.0,26014.0,0.015]
[1693802167347,0.024,26015.0,26014.0,0.016]
[1693802167761,0.024,26015.0,26014.0,0.017]
[1693802167999,0.024,26015.0,26014.0,0.016]
[1693802168208,0.024,26015.0,26014.0,0.017]
[1693802168664,0.2514,26017.0,26014.0,0.015]
[1693802168867,0.024,26015.0,26014.0,0.016]
[1693802168996,0.024,26015.0,26014.0,0.017]
[1693802169804,0.024,26015.0,26014.0,0.016]
[1693802170411,0.024,26015.0,26014.0,0.017]
[1693802170719,0.024,26015.0,26014.0,0.016]
[1693802170937,0.048,26015.0,26014.0,0.017]
[1693802176772,0.10306875,26015.0,26014.0,0.017]
[1693802182051,0.33357682,26015.0,26014.0,0.017]
[1693802182262,0.41637682,26015.0,26014.0,0.017]
[1693802188285,0.41637682,26015.0,26014.0,0.01692772]
[1693802192656,0.33357682,26015.0,26014.0,0.01692772]
[1693802194073,0.10306875,26015.0,26014.0,0.01692772]
[1693802194993,0.10306875,26015.0,26014.0,0.02282772]
[1693802199240,0.10306875,26015.0,26014.0,0.01977779]
[1693802238896,0.4055746,26015.0,26014.0,0.01977779]
[1693802241344,0.4055746,26015.0,26014.0,0.02127779]
[1693802244014,0.4055746,26015.0,26014.0,0.21127779]
[1693802248595,0.18586875,26015.0,26014.0,0.21127779]
[1693802256997,0.18586875,26015.0,26014.0,0.22977779]
[1693802262572,0.10306875,26015.0,26014.0,0.22977779]
[1693802274178,0.18586875,26015.0,26014.0,0.22977779]
[1693802276820,0.10306875,26015.0,26014.0,0.22977779]
[1693802282066,0.10306875,26015.0,26014.0,0.22777779]
[1693802282067,0.05506875,26015.0,26014.0,0.22777779]
[1693802282280,0.07906875,26015.0,26014.0,0.22877779]
[1693802282489,0.10306875,26015.0,26014.0,0.22977779]
[1693802283771,0.07906875,26015.0,26014.0,0.22877779]
[1693802283990,0.10306875,26015.0,26014.0,0.22977779]
[1693802289623,0.42908898,26015.0,26014.0,0.22977779]
[1693802291707,0.18586875,26015.0,26014.0,0.22977779]
[1693802297305,0.10306875,26015.0,26014.0,0.22977779]
[1693802300906,0.48429088,26015.0,26014.0,0.22977779]
[1693802305343,0.47929088,26015.0,26014.0,0.22977779]
[1693802336354,0.0828,26015.0,26014.0,0.22977779]
[1693802336628,0.14202216,26015.0,26014.0,0.22977779]
[1693802339909,0.05922216,26015.0,26014.0,0.22977779]
[1693802340326,0.05922216,26015.0,26014.0,0.32195143]
[1693802340535,0.006,26017.0,26014.0,0.32195143]
[1693802341187,0.006,26017.0,26016.0,0.01187779]
[1693802342134,0.03,26017.0,26016.0,0.01187779]
[1693802342501,0.006,26017.0,26016.0,0.01187779]
[1693802342700,0.03,26017.0,26016.0,0.01387779]
[1693802342930,0.054,26017.0,26016.0,0.01387779]
[1693802343252,0.03,26017.0,26016.0,0.01387779]
[1693802343451,0.054,26017.0,26016.0,0.01587779]
[1693802343872,0.11293534,26017.0,26016.0,0.01587779]
[1693802359055,0.11030234,26017.0,26016.0,0.01587779]
[1693802360258,0.11021634,26017.0,26016.0,0.01587779]
[1693802412616,0.49730312,26017.0,26016.0,0.01587779]
[1693802412847,0.58010312,26017.0,26016.0,0.01587779]
[1693802416337,0.58001412,26017.0,26016.0,0.01587779]
[1693802428444,0.57501412,26017.0,26016.0,0.01587779]
[1693802437175,0.56501412,26017.0,26016.0,0.01587779]
[1693802438757,0.83951364,26017.0,26016.0,0.01587779]
[1693802447299,0.83951364,26017.0,26016.0,0.004]
[1693802447300,0.79566583,26017.0,26016.0,0.004]
[1693802447500,0.94080444,26017.0,26016.0,0.004]
[1693802447946,0.89465814,26017.0,26016.0,0.004]
[1693802454875,0.94384941,26017.0,26016.0,0.004]
[1693802455489,0.80538106,26017.0,26016.0,0.004]
[1693802455713,0.88818106,26017.0,26016.0,0.004]
[1693802455918,1.25478106,26017.0,26016.0,0.004]
[1693802456240,1.25526106,26017.0,26016.0,0.004]
[1693802456414,1.18818106,26017.0,26016.0,0.004]
[1693802456836,1.16418106,26017.0,26016.0,0.002]
[1693802457039,0.02,26015.0,26014.0,0.0259]
[1693802457247,0.48988678,26015.0,26014.0,0.0259]
[1693802457451,0.55476497,26015.0,26014.0,0.0259]
[1693802458282,0.57876497,26015.0,26014.0,0.0269]
[1693802458911,0.57876497,26015.0,26014.0,0.0289]
[1693802458912,0.60276497,26015.0,26014.0,0.0289]
[1693802459132,0.8157088,26015.0,26014.0,0.0289]
[1693802461498,0.8157088,26015.0,26014.0,0.2189]
[1693802468565,0.60276497,26015.0,26014.0,0.2189]
[1693802468793,0.86438421,26015.0,26014.0,0.2189]
[1693802492804,0.95650628,26015.0,26014.0,0.2189]
[1693802493220,0.92204128,26015.0,26014.0,0.2189]
[1693802494075,0.92146528,26015.0,26014.0,0.2189]
[1693802501584,0.98876928,26015.0,26014.0,0.2189]
[1693802516322,1.12695239,26015.0,26014.0,0.2189]
[1693802521300,0.98876928,26015.0,26014.0,0.2189]
[1693802523083,0.72715004,26015.0,26014.0,0.2189]
[1693802541037,0.55222797,26015.0,26014.0,0.23077779]
[1693802541244,0.18018219,26015.0,26014.0,0.23077779]
[1693802541889,0.15618219,26015.0,26014.0,0.32081179]
[1693802542091,0.13218219,26015.0,26014.0,0.22777779]
[1693802542298,0.15618219,26015.0,26014.0,0.22977779]
[1693802542502,0.18018219,26015.0,26014.0,0.23177779]
[1693802542728,0.18018219,26015.0,26014.0,0.22977779]
[1693802542932,0.15618219,26015.0,26014.0,0.22977779]
[1693802543133,0.16818219,26015.0,26014.0,0.23077779]
[1693802543974,0.14418219,26015.0,26014.0,0.22877779]
[1693802544179,0.14418219,26015.0,26014.0,0.23077779]
[1693802544377,0.16018219,26015.0,26014.0,0.23077779]
[1693802584859,0.16018219,26015.0,26014.0,0.32284095]
[1693802586857,0.16018219,26015.0,26014.0,0.46093569]
[1693802587106,0.16018219,26015.0,26014.0,0.73411223]
[1693802587959,0.16018219,26015.0,26014.0,0.64204907]
[1693802594013,0.14818219,26015.0,26014.0,0.64104907]
[1693802594227,0.15018219,26015.0,26014.0,0.66004907]
[1693802594447,0.13418219,26015.0,26014.0,0.65804907]
[1693802594626,0.13618219,26015.0,26014.0,0.68204907]
[1693802595231,0.13418219,26015.0,26014.0,0.65804907]
[1693802595446,0.13418219,26015.0,26014.0,0.68204907]
[1693802595447,0.13618219,26015.0,26014.0,0.68204907]
[1693802596415,0.21898219,26015.0,26014.0,0.36289054]
[1693802612402,0.8947864,26015.0,26014.0,0.36289054]
[1693802612633,0.8947864,26015.0,26014.0,0.27077779]
[1693802613086,0.8927864,26015.0,26014.0,0.25177779]
[1693802613318,0.8907864,26015.0,26014.0,0.22777779]
[1693802613549,0.8947864,26015.0,26014.0,0.26777779]
[1693802613794,0.8927864,26015.0,26014.0,0.25177779]
[1693802614005,0.8937864,26015.0,26014.0,0.22877779]
[1693802614215,0.9007864,26015.0,26014.0,0.22977779]
[1693802615780,0.61206897,26015.0,26014.0,0.22977779]
[1693802616409,0.60506897,26015.0,26014.0,0.22877779]
[1693802616629,0.60506897,26015.0,26014.0,0.2169]
[1693802616849,0.60506897,26015.0,26014.0,0.2179]
[1693802616850,0.61106897,26015.0,26014.0,0.2179]
[1693802617284,0.60806897,26015.0,26014.0,0.2169]
[1693802617689,0.62206897,26015.0,26014.0,0.2169]
[1693802618110,0.8568931,26015.0,26014.0,0.2169]
[1693802618312,0.62206897,26015.0,26014.0,0.2169]
[1693802618523,0.60206897,26015.0,26014.0,0.2159]
[1693802618929,0.62606897,26015.0,26014.0,0.2179]
[1693802619544,0.60206897,26015.0,26014.0,0.2159]
[1693802619786,0.62606897,26015.0,26014.0,0.2179]
[1693802619986,0.80388897,26015.0,26014.0,0.2189]
[1693802621454,1.01568247,26015.0,26014.0,0.2189]
[1693802621653,1.03730622,26015.0,26014.0,0.2189]
[1693802622861,0.82551272,26015.0,26014.0,0.2189]
[1693802624616,1.09074813,26015.0,26014.0,0.2189]
[1693802624980,0.82551272,26015.0,26014.0,0.2189]
[1693802625391,1.05347563,26015.0,26014.0,0.2189]
[1693802626422,0.82551272,26015.0,26014.0,0.2189]
[1693802627601,1.12458901,26015.0,26014.0,0.2189]
[1693802627808,1.07663883,26015.0,26014.0,0.2189]
[1693802628958,0.08,26010.0,26007.0,0.0057]
[1693802629169,0.08,26010.0,26001.0,0.18412633]
[1693802629170,0.08,26006.0,26001.0,0.18412633]
[1693802629382,0.38708678,26006.0,25999.0,0.09211275]
[1693802629712,0.38708678,26006.0,25997.0,0.25020749]
[1693802629713,0.97118678,26006.0,25997.0,0.25020749]
[1693802629817,0.3845951,26002.0,25997.0,0.25020749]
[1693802630018,0.0828,25999.0,25997.0,0.25020749]
[1693802630652,0.13438761,25997.0,25996.0,0.18412633]
[1693802630889,0.13438761,25997.0,25996.0,0.45416634]
[1693802631295,0.13438761,25997.0,25995.0,0.32412633]
[1693802632361,0.13638761,25997.0,25995.0,0.14]
[1693802632546,0.13838761,25997.0,25995.0,0.14]
[1693802637215,0.13838761,25997.0,25995.0,0.33]
[1693802637373,0.13838761,25997.0,25995.0,0.325]
[1693802638606,0.13838761,25997.0,25995.0,0.135]
[1693802644538,0.13838761,25997.0,25995.0,0.13]
[1693802647007,0.13838761,25997.0,25996.0,0.0828]
[1693802648027,0.13638761,25997.0,25995.0,0.51708678]
[1693802648255,0.13938761,25997.0,25995.0,0.51708678]
[1693802648459,0.13738761,25997.0,25995.0,0.51708678]
[1693802648662,0.14038761,25997.0,25996.0,0.001]
[1693802649378,0.13738761,25997.0,25996.0,0.001]
[1693802650691,0.13938761,25997.0,25996.0,0.001]
[1693802651226,0.13738761,25997.0,25996.0,0.001]
[1693802651427,0.14038761,25997.0,25996.0,0.001]
[1693802651631,0.13738761,25997.0,25995.0,0.70708678]
[1693802651849,0.13938761,25997.0,25995.0,0.70808678]
[1693802652148,0.13738761,25997.0,25995.0,0.70708678]
[1693802652613,0.13738761,25997.0,25996.0,0.001]
[1693802652811,0.13438761,25997.0,25995.0,0.70708678]
[1693802653032,0.13638761,25997.0,25995.0,0.321]
[1693802654015,0.13838761,25997.0,25995.0,0.321]
[1693802656340,0.13838761,25997.0,25995.0,0.311]
[1693802659281,0.13838761,25997.0,25995.0,0.251]
[1693802660087,0.13838761,25997.0,25995.0,0.191]
[1693802660281,0.13838761,25997.0,25995.0,0.251]
[1693802660882,0.13838761,25997.0,25995.0,0.34272402]
[1693802661089,0.13838761,25997.0,25995.0,0.251]
[1693802661293,0.13838761,25997.0,25995.0,0.34272402]
[1693802661925,0.13838761,25997.0,25995.0,0.251]
[1693802662337,0.13838761,25997.0,25995.0,0.34272402]
[1693802666261,0.13838761,25997.0,25995.0,0.48031083]
[1693802667999,0.13838761,25997.0,25996.0,0.09172402]
[1693802668609,0.24053136,25997.0,25996.0,0.09172402]
[1693802669005,0.13638761,25997.0,25996.0,0.09172402]
[1693802669200,0.24153136,25997.0,25996.0,0.09272402]
[1693802670373,0.23953136,25997.0,25996.0,0.23031083]
[1693802670527,0.23953136,25997.0,25996.0,0.48690307]
[1693802670726,0.24253136,25997.0,25996.0,0.48690307]
[1693802671330,0.24253136,25997.0,25996.0,0.39517905]
[1693802671725,0.14038761,25997.0,25996.0,0.39517905]
[1693802672355,0.14038761,25997.0,25996.0,0.44171857]
[1693802673051,0.16038761,25997.0,25996.0,0.44171857]
[1693802673255,0.22769161,25997.0,25996.0,0.48775015]
[1693802673878,0.32983536,25997.0,25996.0,0.48775015]
[1693802674236,0.32983536,25997.0,25996.0,0.25759224]
[1693802675531,0.79972214,25997.0,25996.0,0.25759224]
[1693802675735,0.80972214,25997.0,25996.0,0.4882528]
[1693802676789,0.80972214,25997.0,25996.0,0.44210137]
[1693802677127,0.80672214,25997.0,25996.0,0.44210137]
[1693802677329,0.80672214,25997.0,25996.0,0.44110137]
[1693802677660,0.80672214,25997.0,25996.0,0.44210137]
[1693802677905,0.80372214,25997.0,25996.0,0.44110137]
[1693802678125,0.80572214,25997.0,25996.0,0.44210137]
[1693802678384,0.80572214,25997.0,25996.0,0.44110137]
[1693802678584,0.80372214,25997.0,25996.0,0.44110137]
[1693802679007,0.80572214,25997.0,25996.0,0.44110137]
[1693802679198,0.80772214,25997.0,25996.0,0.44210137]
[1693802679402,0.42063536,25997.0,25996.0,0.58045362]
[1693802679563,0.42063536,25997.0,25996.0,0.44210137]
[1693802680169,0.41863536,25997.0,25996.0,0.44210137]
[1693802680398,0.41663536,25997.0,25996.0,0.44110137]
[1693802680647,0.41863536,25997.0,25996.0,0.44210137]
[1693802681047,0.41863536,25997.0,25996.0,0.67276193]
[1693802681819,0.41863536,25997.0,25996.0,0.4882528]
[1693802685235,0.33583536,25997.0,25996.0,0.4882528]
[1693802687351,0.30583536,25997.0,25996.0,1.39850322]
[1693802687564,0.30583536,25997.0,25996.0,1.54636851]
[1693802687773,0.20369161,25997.0,25996.0,1.62018089]
[1693802688017,0.20369161,25997.0,25996.0,1.62444089]
[1693802688225,0.20269161,25997.0,25996.0,1.63050089]
[1693802688467,0.20469161,25997.0,25996.0,1.63580089]
[1693802688653,0.20469161,25997.0,25996.0,1.64498089]
[1693802688852,0.20669161,25997.0,25996.0,1.3689114]
[1693802689054,0.20369161,25997.0,25996.0,1.3621914]
[1693802689278,0.20369161,25997.0,25996.0,1.3587114]
[1693802689677,0.20369161,25997.0,25996.0,1.3583514]
[1693802689896,0.20369161,25997.0,25996.0,1.3581714]
[1693802690100,0.20369161,25997.0,25996.0,1.3566714]
[1693802690450,0.20369161,25997.0,25996.0,1.63262465]
[1693802690645,0.20169161,25997.0,25996.0,1.62392465]
[1693802690820,0.20569161,25997.0,25996.0,1.63886465]
[1693802691034,0.20569161,25997.0,25996.0,1.63880465]
[1693802691234,0.20569161,25997.0,25996.0,1.63874465]
[1693802691417,0.04309431,25997.0,25996.0,1.5456714]
[1693802691614,0.04309431,25997.0,25996.0,1.59349867]
[1693802691818,0.04309431,25997.0,25996.0,2.12296972]
[1693802692021,0.04309431,25997.0,25996.0,2.12356972]
[1693802692565,0.04109431,25997.0,25996.0,2.11444972]
[1693802692739,0.04309431,25997.0,25996.0,2.13820972]
[1693802693148,0.04309431,25997.0,25996.0,2.14360972]
[1693802693347,0.04309431,25997.0,25996.0,2.14372972]
[1693802693675,0.04109431,25997.0,25996.0,2.14108972]
[1693802693970,0.03909431,25997.0,25996.0,2.11720972]
[1693802694108,0.04109431,25997.0,25996.0,2.14036972]
[1693802694351,0.04309431,25997.0,25996.0,2.16436972]
[1693802694555,0.04309431,25997.0,25996.0,2.15956972]
[1693802695004,0.04309431,25997.0,25996.0,2.15320972]
[1693802695261,0.04309431,25997.0,25996.0,2.30740972]
[1693802695421,0.04309431,25997.0,25996.0,2.30320972]
[1693802695651,0.04309431,25997.0,25996.0,2.20924972]
[1693802695819,0.04309431,25997.0,25996.0,2.20132972]
[1693802696165,0.04309431,25997.0,25996.0,2.19124972]
[1693802696370,0.04309431,25997.0,25996.0,2.18236972]
[1693802696699,0.04309431,25997.0,25996.0,2.13724972]
[1693802696913,0.04309431,25997.0,25996.0,2.13736972]
[1693802697114,0.03909431,25997.0,25996.0,2.08960972]
[1693802697446,0.04309431,25997.0,25996.0,2.13844972]
[1693802697851,0.04109431,25997.0,25996.0,2.11156972]
[1693802698063,0.04109431,25997.0,25996.0,1.70387867]
[1693802698265,0.04309431,25997.0,25996.0,1.72799867]
[1693802698466,0.04309431,25997.0,25996.0,1.72559867]
[1693802698788,0.04309431,25997.0,25996.0,1.72595867]
[1693802698991,0.04309431,25997.0,25996.0,1.72619867]
[1693802699196,0.04309431,25997.0,25996.0,1.72355867]
[1693802699414,0.04309431,25997.0,25996.0,1.71347867]
[1693802699606,0.04309431,25997.0,25996.0,1.56905867]
[1693802699811,0.04309431,25997.0,25996.0,1.58642349]
[1693802700019,0.04309431,25997.0,25996.0,1.56329867]
[1693802700341,0.04309431,25997.0,25996.0,1.56701867]
[1693802700452,0.04309431,25997.0,25996.0,1.74431867]
[1693802700657,0.04309431,25997.0,25996.0,1.76891867]
[1693802700885,0.04309431,25997.0,25996.0,1.76783867]
[1693802701099,0.04309431,25997.0,25996.0,1.76987867]
[1693802701290,0.04309431,25997.0,25996.0,1.77035867]
[1693802701489,0.04309431,25997.0,25996.0,1.77095867]
[1693802701719,0.04309431,25997.0,25996.0,1.76507867]
[1693802701913,0.04309431,25997.0,25996.0,1.76495867]
[1693802702115,0.04309431,25997.0,25996.0,1.76507867]
[1693802702290,0.04309431,25997.0,25996.0,1.77227867]
[1693802702476,0.04309431,25997.0,25996.0,1.77467867]
[1693802702907,0.04309431,25997.0,25996.0,1.77515867]
[1693802703129,0.04309431,25997.0,25996.0,1.77899867]
[1693802703451,0.04309431,25997.0,25996.0,1.77971867]
[1693802703626,0.04309431,25997.0,25996.0,1.77611867]
[1693802703853,0.04309431,25997.0,25996.0,1.77623867]
[1693802704039,0.04309431,25997.0,25996.0,1.77875867]
[1693802704259,0.04309431,25997.0,25996.0,1.77899867]
[1693802704477,0.04309431,25997.0,25996.0,1.77839867]
[1693802704682,0.04309431,25997.0,25996.0,1.77827867]
[1693802705157,0.04309431,25997.0,25996.0,1.77839867]
[1693802705314,0.04309431,25997.0,25996.0,1.78031867]
[1693802705554,0.04309431,25997.0,25996.0,1.78115867]
[1693802705756,0.04309431,25997.0,25996.0,1.78091867]
[1693802706007,0.04309431,25997.0,25996.0,1.78103867]
[1693802706345,0.04309431,25997.0,25996.0,1.77935867]
[1693802706545,0.04309431,25997.0,25996.0,1.77911867]
[1693802706773,0.04309431,25997.0,25996.0,1.77887867]
[1693802707115,0.04309431,25997.0,25996.0,1.77875867]
[1693802707505,0.04309431,25997.0,25996.0,1.77899867]
[1693802707703,0.04309431,25997.0,25996.0,1.77875867]
[1693802708073,0.04309431,25997.0,25996.0,1.77911867]
[1693802708240,0.04309431,25997.0,25996.0,1.78523867]
[1693802708427,0.04309431,25997.0,25996.0,1.78511867]
[1693802708634,0.04309431,25997.0,25996.0,1.78295867]
[1693802708829,0.04309431,25997.0,25996.0,1.78367867]
[1693802709011,0.04309431,25997.0,25996.0,1.78343867]
[1693802709389,0.04309431,25997.0,25996.0,1.78319867]
[1693802709557,0.04309431,25997.0,25996.0,1.78223867]
[1693802710016,0.04309431,25997.0,25996.0,1.78043867]
[1693802710287,0.04309431,25997.0,25996.0,1.78343867]
[1693802710692,0.04309431,25997.0,25996.0,1.78331867]
[1693802710920,0.04309431,25997.0,25996.0,1.78319867]
[1693802711103,0.04309431,25997.0,25996.0,2.06166299]
[1693802711304,0.04309431,25997.0,25996.0,2.06154299]
[1693802711505,0.04309431,25997.0,25996.0,1.78595867]
[1693802711640,0.04309431,25997.0,25996.0,1.78391867]
[1693802711845,0.04309431,25997.0,25996.0,2.05962496]
[1693802712068,0.04309431,25997.0,25996.0,2.05950496]
[1693802712285,0.04309431,25997.0,25996.0,1.78367867]
[1693802712462,0.04309431,25997.0,25996.0,2.06503195]
[1693802712670,0.04309431,25997.0,25996.0,2.06839195]
[1693802712903,0.04309431,25997.0,25996.0,2.06827195]
[1693802713160,0.04309431,25997.0,25996.0,1.75663425]
[1693802713371,0.04309431,25997.0,25996.0,1.75651425]
[1693802713517,0.04309431,25997.0,25996.0,1.75627425]
[1693802713723,0.04309431,25997.0,25996.0,1.75615425]
[1693802714025,0.04309431,25997.0,25996.0,1.75651425]
[1693802714226,0.04309431,25997.0,25996.0,1.75639425]
[1693802714424,0.04309431,25997.0,25996.0,1.75723425]
[1693802714629,0.04309431,25997.0,25996.0,1.75663425]
[1693802714831,0.04309431,25997.0,25996.0,1.75615425]
[1693802715056,0.04309431,25997.0,25996.0,1.75603425]
[1693802715230,0.04309431,25997.0,25996.0,1.75591425]
[1693802715429,0.04309431,25997.0,25996.0,1.75579425]
[1693802715652,0.04309431,25997.0,25996.0,1.77115425]
[1693802715971,0.04309431,25997.0,25996.0,1.77067425]
[1693802716185,0.04309431,25997.0,25996.0,1.77074225]
[1693802716602,0.04309431,25997.0,25996.0,1.64179498]
[1693802716787,0.04309431,25997.0,25996.0,1.750693]
[1693802717123,0.04309431,25997.0,25996.0,1.760893]
[1693802717296,0.04309431,25997.0,25996.0,1.763953]
[1693802717501,0.04309431,25997.0,25996.0,1.763593]
[1693802717748,0.04309431,25997.0,25996.0,1.764553]
[1693802717950,0.04309431,25997.0,25996.0,1.764733]
[1693802718161,0.04309431,25997.0,25996.0,1.764673]
[1693802718561,0.04309431,25997.0,25996.0,1.766053]